[Event "FIDE U16 Olympiad_boards_1-80"]
[Site "Eindhoven, Netherlands"]
[Date "2023.08.13"]
[Round "1.37"]
[White "Magold, Filip"]
[Black "Simpson, Michael"]
[Result "1-0"]
[TimeControl "2700+10"]
[WhiteElo "2195"]
[BlackElo "1909"]

1. e4 {[%clk 00:45:17]} {[%emt 00:00:02]} c5 {[%clk 00:45:19]} {[%emt
00:00:02]} 2. Nf3 {[%clk 00:45:25]} {[%emt 00:00:01]} d6 {[%clk 00:45:28]}
{[%emt 00:00:02]} 3. d4 {[%clk 00:45:33]} {[%emt 00:00:02]} cxd4 {[%clk
00:45:37]} 4. Nxd4 {[%clk 00:45:41]} {[%emt 00:00:02]} Nf6 {[%clk 00:45:46]}
{[%emt 00:00:01]} 5. Nc3 {[%clk 00:45:49]} {[%emt 00:00:02]} a6 {[%clk
00:45:55]} 6. Be3 {[%clk 00:45:55]} {[%emt 00:00:03]} e5 {[%clk 00:46:04]}
{[%emt 00:00:02]} 7. Nf3 {[%clk 00:46:03]} {[%emt 00:00:02]} Be7 {[%clk
00:46:09]} {[%emt 00:00:04]} 8. Bc4 {[%clk 00:46:11]} {[%emt 00:00:02]} Qc7
{[%clk 00:45:33]} {[%emt 00:00:47]} 9. Bb3 {[%clk 00:45:58]} {[%emt 00:00:23]}
Be6 {[%clk 00:45:34]} {[%emt 00:00:09]} 10. O-O {[%clk 00:45:54]} {[%emt
00:00:14]} O-O {[%clk 00:45:34]} {[%emt 00:00:10]} 11. Qe2 {[%clk 00:45:59]}
{[%emt 00:00:04]} b5 {[%clk 00:42:48]} {[%emt 00:02:57]} 12. Rfd1 {[%clk
00:43:08]} {[%emt 00:03:00]} h6 {[%clk 00:42:06]} {[%emt 00:00:52]} 13. Nh4
{[%clk 00:34:14]} {[%emt 00:09:04]} b4 {[%clk 00:37:20]} {[%emt 00:04:57]} 14.
Na4 {[%clk 00:30:21]} {[%emt 00:04:03]} Nbd7 {[%clk 00:28:24]} {[%emt
00:09:06]} 15. Nf5 {[%clk 00:28:52]} {[%emt 00:01:38]} Bxf5 {[%clk 00:28:01]}
{[%emt 00:00:34]} 16. exf5 {[%clk 00:28:59]} {[%emt 00:00:02]} Qc6 {[%clk
00:27:53]} {[%emt 00:00:18]} 17. Qc4 {[%clk 00:24:59]} {[%emt 00:04:10]} Qb7
{[%clk 00:22:05]} {[%emt 00:05:56]} 18. Qd3 {[%clk 00:19:33]} {[%emt 00:05:37]}
Rac8 {[%clk 00:15:07]} {[%emt 00:07:09]} 19. h3 {[%clk 00:18:35]} {[%emt
00:01:07]} e4 {[%clk 00:14:32]} {[%emt 00:00:45]} 20. Qd4 {[%clk 00:13:35]}
{[%emt 00:05:10]} Qb5 {[%clk 00:14:05]} {[%emt 00:00:38]} 21. Nb6 {[%clk
00:13:23]} {[%emt 00:00:22]} Nxb6 {[%clk 00:12:03]} {[%emt 00:02:12]} 22. Qxb6
{[%clk 00:13:31]} {[%emt 00:00:02]} Qxf5 {[%clk 00:08:17]} {[%emt 00:03:56]} 23.
Qxa6 {[%clk 00:13:26]} {[%emt 00:00:14]} d5 {[%clk 00:07:44]} {[%emt 00:00:44]}
24. Qb7 {[%clk 00:09:44]} {[%emt 00:03:51]} Bd6 {[%clk 00:06:31]} {[%emt
00:01:23]} 25. Bxd5 {[%clk 00:07:49]} {[%emt 00:02:05]} Rxc2 {[%clk 00:05:19]}
{[%emt 00:01:23]} 26. Bb3 {[%clk 00:07:36]} {[%emt 00:00:23]} Rc7 {[%clk
00:04:49]} {[%emt 00:00:39]} 27. Qb6 {[%clk 00:06:36]} {[%emt 00:01:10]} Be5
{[%clk 00:04:32]} {[%emt 00:00:28]} 28. Qxb4 {[%clk 00:05:31]} {[%emt
00:01:15]} Bxb2 {[%clk 00:04:27]} {[%emt 00:00:15]} 29. Rab1 {[%clk 00:04:58]}
{[%emt 00:00:42]} Bc3 {[%clk 00:04:00]} {[%emt 00:00:37]} 30. Qb6 {[%clk
00:04:52]} {[%emt 00:00:15]} Rfc8 {[%clk 00:03:06]} {[%emt 00:01:04]} 31. Rd8+
{[%clk 00:04:25]} {[%emt 00:00:36]} Kh7 {[%clk 00:03:15]} {[%emt 00:00:02]} 32.
Rxc8 {[%clk 00:04:09]} {[%emt 00:00:26]} Qxc8 {[%clk 00:03:24]} {[%emt
00:00:02]} 33. Rd1 {[%clk 00:03:22]} {[%emt 00:00:57]} Be5 {[%clk 00:03:07]}
{[%emt 00:00:26]} 34. Qb5 {[%clk 00:03:10]} {[%emt 00:00:22]} Qf5 {[%clk
00:02:56]} {[%emt 00:00:21]} 35. a4 {[%clk 00:03:19]} {[%emt 00:00:02]} Qh5
{[%clk 00:01:21]} {[%emt 00:01:44]} 36. Re1 {[%clk 00:02:20]} {[%emt 00:01:09]}
Rd7 {[%clk 00:00:31]} {[%emt 00:01:00]} 37. Bc2 {[%clk 00:00:52]} {[%emt
00:01:38]} g6 {[%clk 00:00:16]} {[%emt 00:00:26]} 38. g4 {[%clk 00:00:22]}
{[%emt 00:00:39]} Qxh3 {[%clk 00:00:13]} {[%emt 00:00:11]} 39. Qxe5 {[%clk
00:00:31]} {[%emt 00:00:03]} Nxg4 {[%clk 00:00:21]} {[%emt 00:00:03]} 40. Qg3
{[%clk 00:00:18]} {[%emt 00:00:23]} Qh5 {[%clk 00:00:17]} {[%emt 00:00:14]} 41.
Bxe4 {[%clk 00:00:18]} {[%emt 00:00:09]} Nxe3 {[%clk 00:00:14]} {[%emt
00:00:13]} 42. Qxe3 {[%clk 00:00:26]} {[%emt 00:00:01]} Rd1 {[%clk 00:00:13]}
{[%emt 00:00:12]} 43. a5 {[%clk 00:00:23]} {[%emt 00:00:13]} Qg5+ {[%clk
00:00:14]} {[%emt 00:00:09]} 44. Kf1 {[%clk 00:00:30]} {[%emt 00:00:04]} Qb5+
{[%clk 00:00:17]} {[%emt 00:00:06]} 45. Kg2 {[%clk 00:00:38]} {[%emt 00:00:02]}
Qg5+ {[%clk 00:00:23]} {[%emt 00:00:04]} 46. Qxg5 {[%clk 00:00:47]} {[%emt
00:00:01]} 1-0

[Event "FIDE U16 Olympiad_boards_1-80"]
[Site "Eindhoven, Netherlands"]
[Date "2023.08.13"]
[Round "1.38"]
[White "Soojay, Jorah"]
[Black "Filip, Andrei"]
[Result "0-1"]
[TimeControl "2700+10"]
[WhiteElo "1566"]
[BlackElo "2182"]

1. e4 {[%clk 00:45:17]} {[%emt 00:00:03]} c5 {[%clk 00:45:12]} {[%emt
00:00:08]} 2. Nf3 {[%clk 00:45:16]} {[%emt 00:00:11]} e6 {[%clk 00:45:17]}
{[%emt 00:00:05]} 3. d4 {[%clk 00:45:17]} {[%emt 00:00:10]} cxd4 {[%clk
00:45:15]} {[%emt 00:00:12]} 4. Nxd4 {[%clk 00:45:23]} {[%emt 00:00:04]} a6
{[%clk 00:45:17]} {[%emt 00:00:08]} 5. Nc3 {[%clk 00:45:23]} {[%emt 00:00:09]}
b5 {[%clk 00:44:56]} {[%emt 00:00:31]} 6. Bd3 {[%clk 00:43:59]} {[%emt
00:01:35]} Bb7 {[%clk 00:44:46]} {[%emt 00:00:19]} 7. O-O {[%clk 00:43:05]}
{[%emt 00:01:04]} Nc6 {[%clk 00:44:16]} {[%emt 00:00:40]} 8. Nb3 {[%clk
00:42:51]} {[%emt 00:00:24]} Nf6 {[%clk 00:43:21]} {[%emt 00:01:06]} 9. Bd2
{[%clk 00:39:36]} {[%emt 00:03:24]} Be7 {[%clk 00:40:44]} {[%emt 00:02:47]} 10.
Kh1 {[%clk 00:38:53]} {[%emt 00:00:53]} O-O {[%clk 00:38:31]} {[%emt 00:02:23]}
11. f4 {[%clk 00:38:12]} {[%emt 00:00:52]} d6 {[%clk 00:37:26]} {[%emt
00:01:14]} 12. a4 {[%clk 00:32:38]} {[%emt 00:05:44]} b4 {[%clk 00:34:48]}
{[%emt 00:02:49]} 13. Na2 {[%clk 00:32:41]} {[%emt 00:00:06]} d5 {[%clk
00:33:15]} {[%emt 00:01:43]} 14. e5 {[%clk 00:30:06]} {[%emt 00:02:45]} Ne4
{[%clk 00:33:06]} {[%emt 00:00:20]} 15. Qe2 {[%clk 00:10:31]} {[%emt 00:19:45]}
Qc7 {[%clk 00:24:44]} {[%emt 00:08:31]} 16. c3 {[%clk 00:07:57]} {[%emt
00:02:44]} bxc3 {[%clk 00:16:07]} {[%emt 00:08:48]} 17. Nxc3 {[%clk 00:07:52]}
{[%emt 00:00:14]} Nxd2 {[%clk 00:13:52]} {[%emt 00:02:26]} 18. Nxd2 {[%clk
00:07:26]} {[%emt 00:00:36]} g6 {[%clk 00:11:08]} {[%emt 00:02:54]} 19. Rae1
{[%clk 00:05:01]} {[%emt 00:02:35]} Rfd8 {[%clk 00:09:03]} {[%emt 00:02:15]} 20.
Qg4 {[%clk 00:04:44]} {[%emt 00:00:27]} Nb4 {[%clk 00:08:17]} {[%emt 00:00:55]}
21. Bb1 {[%clk 00:04:17]} {[%emt 00:00:38]} d4 {[%clk 00:07:46]} {[%emt
00:00:41]} 22. Nce4 {[%clk 00:02:00]} {[%emt 00:02:27]} Nd5 {[%clk 00:07:48]}
{[%emt 00:00:08]} 23. Re2 {[%clk 00:00:47]} {[%emt 00:01:23]} Ne3 {[%clk
00:06:40]} {[%emt 00:01:17]} 24. Rxe3 {[%clk 00:00:32]} {[%emt 00:00:26]} dxe3
{[%clk 00:06:43]} {[%emt 00:00:07]} 25. Nb3 {[%clk 00:00:22]} {[%emt 00:00:20]}
Qc4 {[%clk 00:06:00]} {[%emt 00:00:52]} 26. Rc1 {[%clk 00:00:29]} {[%emt
00:00:03]} Qxb3 {[%clk 00:05:58]} {[%emt 00:00:13]} 27. Nf6+ {[%clk 00:00:15]}
{[%emt 00:00:25]} Bxf6 {[%clk 00:06:06]} {[%emt 00:00:02]} 28. exf6 {[%clk
00:00:19]} {[%emt 00:00:06]} Qxb2 {[%clk 00:06:09]} {[%emt 00:00:07]} 29. Rg1
{[%clk 00:00:14]} {[%emt 00:00:15]} Qxf6 {[%clk 00:06:12]} {[%emt 00:00:07]} 30.
Re1 {[%clk 00:00:11]} {[%emt 00:00:12]} Rd2 {[%clk 00:06:09]} {[%emt 00:00:12]}
0-1

[Event "FIDE U16 Olympiad_boards_1-80"]
[Site "Eindhoven, Netherlands"]
[Date "2023.08.13"]
[Round "1.39"]
[White "Cnejev, Vladimir-Alexandru"]
[Black "Boshoma, Chisomo"]
[Result "1-0"]
[TimeControl "2700+10"]
[WhiteElo "2164"]
[BlackElo "1668"]

1. e4 {[%clk 00:45:14]} {[%emt 00:00:05]} e6 {[%clk 00:45:18]} {[%emt
00:00:03]} 2. d4 {[%clk 00:45:20]} {[%emt 00:00:03]} d5 {[%clk 00:45:26]}
{[%emt 00:00:02]} 3. e5 {[%clk 00:45:27]} {[%emt 00:00:04]} c5 {[%emt
00:00:04]} 4. c3 {[%clk 00:45:33]} {[%emt 00:00:02]} Qb6 {[%clk 00:45:41]}
{[%emt 00:00:02]} 5. Nf3 {[%clk 00:45:39]} {[%emt 00:00:04]} Nc6 {[%clk
00:45:49]} {[%emt 00:00:03]} 6. a3 {[%clk 00:45:43]} {[%emt 00:00:06]} Nh6
{[%clk 00:45:56]} {[%emt 00:00:02]} 7. b4 {[%clk 00:45:45]} {[%emt 00:00:08]}
cxd4 {[%clk 00:46:04]} {[%emt 00:00:03]} 8. cxd4 {[%clk 00:45:52]} {[%emt
00:00:02]} Nf5 {[%clk 00:46:12]} {[%emt 00:00:02]} 9. Be3 {[%clk 00:45:56]}
{[%emt 00:00:06]} f6 {[%clk 00:45:48]} {[%emt 00:00:34]} 10. exf6 {[%clk
00:36:28]} {[%emt 00:09:37]} gxf6 {[%clk 00:45:56]} {[%emt 00:00:03]} 11. Bd3
{[%clk 00:36:33]} {[%emt 00:00:05]} Nxe3 {[%clk 00:46:02]} {[%emt 00:00:04]} 12.
fxe3 {[%clk 00:36:42]} {[%emt 00:00:02]} Bh6 {[%clk 00:46:10]} {[%emt
00:00:02]} 13. Qe2 {[%clk 00:36:48]} {[%emt 00:00:03]} Bd7 {[%clk 00:46:10]}
{[%emt 00:00:11]} 14. Nc3 {[%clk 00:34:38]} {[%emt 00:02:19]} Ne7 {[%clk
00:46:07]} {[%emt 00:00:13]} 15. O-O {[%clk 00:34:08]} {[%emt 00:00:39]} e5
{[%clk 00:41:30]} {[%emt 00:04:48]} 16. dxe5 {[%clk 00:29:21]} {[%emt
00:04:58]} Qxe3+ {[%clk 00:41:04]} {[%emt 00:00:36]} 17. Qxe3 {[%clk 00:25:37]}
{[%emt 00:03:53]} Bxe3+ {[%clk 00:41:11]} {[%emt 00:00:04]} 18. Kh1 {[%clk
00:25:45]} {[%emt 00:00:02]} fxe5 {[%clk 00:34:41]} {[%emt 00:06:41]} 19. Rae1
{[%clk 00:22:24]} {[%emt 00:03:30]} e4 {[%clk 00:31:33]} {[%emt 00:03:19]} 20.
Rxe3 {[%clk 00:20:47]} {[%emt 00:01:47]} Nf5 {[%clk 00:22:05]} {[%emt
00:09:37]} 21. Ree1 {[%clk 00:20:55]} {[%emt 00:00:02]} O-O-O {[%clk 00:19:24]}
{[%emt 00:02:52]} 22. Ne5 {[%clk 00:18:35]} {[%emt 00:02:30]} exd3 {[%clk
00:16:05]} {[%emt 00:03:29]} 23. Nxd7 {[%clk 00:17:05]} {[%emt 00:01:39]} d4
{[%clk 00:15:08]} {[%emt 00:01:07]} 24. Ne4 {[%clk 00:05:49]} {[%emt 00:11:27]}
Ne3 {[%clk 00:14:31]} {[%emt 00:00:47]} 25. Ndf6 {[%clk 00:05:00]} {[%emt
00:00:59]} Nxf1 {[%clk 00:13:18]} {[%emt 00:01:23]} 26. Rxf1 {[%clk 00:05:07]}
{[%emt 00:00:01]} Kb8 {[%clk 00:12:03]} {[%emt 00:01:26]} 27. Rd1 {[%clk
00:01:44]} {[%emt 00:03:33]} Rc8 {[%clk 00:12:12]} {[%emt 00:00:02]} 28. Kg1
{[%clk 00:01:40]} {[%emt 00:00:15]} d2 {[%clk 00:12:20]} {[%emt 00:00:01]} 29.
Rxd2 {[%clk 00:01:43]} {[%emt 00:00:08]} Rc1+ {[%clk 00:12:27]} {[%emt
00:00:02]} 30. Kf2 {[%clk 00:01:52]} {[%emt 00:00:01]} Ra1 {[%clk 00:11:30]}
{[%emt 00:01:07]} 31. Rd3 {[%clk 00:01:21]} {[%emt 00:00:41]} h6 {[%clk
00:08:17]} {[%emt 00:03:23]} 32. g4 {[%clk 00:00:27]} {[%emt 00:01:05]} Rc8
{[%clk 00:07:30]} {[%emt 00:00:56]} 33. Kg3 {[%clk 00:00:23]} {[%emt 00:00:15]}
Ra2 {[%clk 00:05:54]} {[%emt 00:01:46]} 34. h4 {[%clk 00:00:31]} {[%emt
00:00:01]} Rc7 {[%clk 00:03:42]} {[%emt 00:02:22]} 35. Kf4 {[%clk 00:00:36]}
{[%emt 00:00:05]} Rh2 {[%clk 00:03:09]} {[%emt 00:00:43]} 36. h5 {[%clk
00:00:43]} {[%emt 00:00:04]} Ra2 {[%clk 00:02:19]} {[%emt 00:01:00]} 37. Kf5
{[%clk 00:00:14]} {[%emt 00:00:38]} Rg7 {[%clk 00:01:59]} {[%emt 00:00:30]} 38.
Ke5 {[%clk 00:00:13]} {[%emt 00:00:11]} Re7+ {[%clk 00:01:16]} {[%emt
00:00:53]} 39. Kxd4 {[%clk 00:00:21]} {[%emt 00:00:03]} a6 {[%clk 00:00:56]}
{[%emt 00:00:30]} 40. Ke3 {[%clk 00:00:17]} {[%emt 00:00:13]} Rh2 {[%clk
00:00:56]} {[%emt 00:00:10]} 41. Kf4 {[%clk 00:00:23]} {[%emt 00:00:04]} Rh1
{[%clk 00:00:54]} {[%emt 00:00:13]} 42. Rf3 {[%clk 00:00:14]} {[%emt 00:00:19]}
Re1 {[%clk 00:00:32]} {[%emt 00:00:32]} 43. Kf5 {[%clk 00:00:22]} {[%emt
00:00:02]} R7xe4 {[%clk 00:00:00]} 1-0

[Event "FIDE U16 Olympiad_boards_1-80"]
[Site "Eindhoven, Netherlands"]
[Date "2023.08.13"]
[Round "1.40"]
[White "Yan, Weilun"]
[Black "Maria, Lia-Alexandra"]
[Result "0-1"]
[TimeControl "2700+10"]
[WhiteElo "1390"]
[BlackElo "1859"]

1. d4 {[%clk 00:45:18]} {[%emt 00:00:01]} d5 {[%clk 00:45:13]} {[%emt
00:00:08]} 2. Nf3 {[%clk 00:45:26]} {[%emt 00:00:02]} Nf6 {[%clk 00:45:19]}
{[%emt 00:00:04]} 3. g3 {[%clk 00:45:34]} {[%emt 00:00:02]} c5 {[%clk
00:44:33]} {[%emt 00:00:55]} 4. Bg2 {[%clk 00:45:40]} {[%emt 00:00:05]} Nc6
{[%clk 00:43:36]} {[%emt 00:01:06]} 5. O-O {[%clk 00:45:46]} {[%emt 00:00:04]}
e6 {[%clk 00:42:32]} {[%emt 00:01:15]} 6. c4 {[%clk 00:45:53]} {[%emt
00:00:03]} dxc4 {[%clk 00:42:07]} {[%emt 00:00:35]} 7. dxc5 {[%clk 00:45:52]}
{[%emt 00:00:11]} Qxd1 {[%clk 00:40:57]} {[%emt 00:01:19]} 8. Rxd1 {[%clk
00:46:00]} {[%emt 00:00:02]} Bxc5 {[%clk 00:41:03]} {[%emt 00:00:04]} 9. Nbd2
{[%clk 00:46:06]} {[%emt 00:00:04]} O-O {[%clk 00:39:42]} {[%emt 00:01:32]} 10.
Nxc4 {[%clk 00:46:07]} {[%emt 00:00:09]} b5 {[%clk 00:33:36]} {[%emt 00:06:15]}
11. Nd6 {[%clk 00:26:06]} {[%emt 00:20:11]} Ba6 {[%clk 00:32:16]} {[%emt
00:01:29]} 12. Bg5 {[%clk 00:21:51]} {[%emt 00:04:26]} Bb6 {[%clk 00:27:11]}
{[%emt 00:05:15]} 13. Bxf6 {[%clk 00:17:09]} {[%emt 00:04:51]} gxf6 {[%clk
00:27:16]} {[%emt 00:00:05]} 14. Nd2 {[%clk 00:15:25]} {[%emt 00:01:54]} Rad8
{[%clk 00:25:53]} {[%emt 00:01:34]} 15. Nxf7 {[%clk 00:13:35]} {[%emt
00:02:00]} Rxf7 {[%clk 00:25:06]} {[%emt 00:00:56]} 16. Bxc6 {[%clk 00:13:43]}
{[%emt 00:00:03]} Rc7 {[%clk 00:24:58]} {[%emt 00:00:17]} 17. Be4 {[%clk
00:04:39]} {[%emt 00:09:15]} b4 {[%clk 00:24:57]} {[%emt 00:00:11]} 18. Nb3
{[%clk 00:02:45]} {[%emt 00:02:04]} Rxd1+ {[%clk 00:24:51]} {[%emt 00:00:16]}
19. Rxd1 {[%clk 00:02:54]} {[%emt 00:00:01]} Bxe2 {[%clk 00:24:58]} {[%emt
00:00:04]} 20. Rd8+ {[%clk 00:02:00]} {[%emt 00:01:04]} Kg7 {[%clk 00:24:51]}
{[%emt 00:00:17]} 21. Nd4 {[%clk 00:01:45]} {[%emt 00:00:25]} Rc1+ {[%clk
00:24:55]} {[%emt 00:00:06]} 22. Kg2 {[%clk 00:01:53]} {[%emt 00:00:03]} Bxd8
{[%clk 00:24:57]} {[%emt 00:00:08]} 23. Nxe6+ {[%clk 00:01:57]} {[%emt
00:00:05]} Kh6 {[%clk 00:24:21]} {[%emt 00:00:46]} 24. Nxd8 {[%clk 00:02:05]}
{[%emt 00:00:02]} a5 {[%clk 00:23:31]} {[%emt 00:01:00]} 25. Ne6 {[%clk
00:01:01]} {[%emt 00:01:14]} Bc4 {[%clk 00:23:21]} {[%emt 00:00:20]} 26. Nd4
{[%clk 00:00:36]} {[%emt 00:00:35]} Bxa2 {[%clk 00:23:04]} {[%emt 00:00:28]} 27.
Nc6 {[%clk 00:00:45]} Rc5 {[%clk 00:22:27]} {[%emt 00:00:46]} 28. Nd4 {[%clk
00:00:20]} {[%emt 00:00:36]} Kg7 {[%clk 00:21:49]} {[%emt 00:00:48]} 29. b3
{[%clk 00:00:16]} {[%emt 00:00:14]} Rc1 {[%clk 00:21:06]} {[%emt 00:00:53]} 30.
Kf3 {[%clk 00:00:16]} {[%emt 00:00:10]} Rc3+ {[%clk 00:21:02]} {[%emt
00:00:14]} 31. Kf4 {[%clk 00:00:20]} {[%emt 00:00:05]} Bxb3 {[%clk 00:21:00]}
{[%emt 00:00:12]} 32. Nf5+ {[%clk 00:00:18]} {[%emt 00:00:12]} Kf8 {[%clk
00:20:45]} {[%emt 00:00:24]} 33. Nd6 {[%clk 00:00:23]} {[%emt 00:00:06]} Bc2
{[%clk 00:20:00]} {[%emt 00:00:55]} 34. Bf3 {[%clk 00:00:14]} {[%emt 00:00:20]}
b3 {[%clk 00:19:58]} {[%emt 00:00:12]} 35. Nb5 {[%clk 00:00:21]} {[%emt
00:00:02]} Rc4+ {[%clk 00:19:48]} {[%emt 00:00:20]} 36. Ke3 {[%clk 00:00:30]}
{[%emt 00:00:02]} b2 {[%clk 00:19:47]} {[%emt 00:00:10]} 37. Na3 {[%clk
00:00:31]} {[%emt 00:00:09]} Rc3+ {[%clk 00:45:10]} {[%emt 00:00:07]} 38. Kd4
{[%clk 00:45:10]} 0-1

[Event "FIDE U16 Olympiad_boards_1-80"]
[Site "Eindhoven, Netherlands"]
[Date "2023.08.13"]
[Round "1.41"]
[White "Pusara, Mihailo"]
[Black "Borrmann, Laurenz"]
[Result "0-1"]
[TimeControl "2700+10"]
[WhiteElo "1873"]
[BlackElo "2238"]

1. e4 {[%clk 00:45:17]} {[%emt 00:00:03]} c6 {[%clk 00:45:15]} {[%emt
00:00:06]} 2. d4 {[%clk 00:45:24]} {[%emt 00:00:02]} d5 {[%clk 00:45:23]}
{[%emt 00:00:02]} 3. exd5 {[%clk 00:45:30]} {[%emt 00:00:05]} cxd5 {[%clk
00:45:30]} {[%emt 00:00:03]} 4. Bd3 {[%clk 00:44:46]} {[%emt 00:00:53]} Nf6
{[%clk 00:45:22]} {[%emt 00:00:18]} 5. h3 {[%clk 00:42:22]} {[%emt 00:02:34]}
Nc6 {[%clk 00:44:37]} {[%emt 00:00:54]} 6. c3 {[%clk 00:38:35]} {[%emt
00:03:59]} e5 {[%clk 00:40:16]} {[%emt 00:04:30]} 7. dxe5 {[%clk 00:36:56]}
{[%emt 00:01:49]} Nxe5 {[%clk 00:40:23]} {[%emt 00:00:03]} 8. Bb5+ {[%clk
00:36:30]} {[%emt 00:00:36]} Bd7 {[%clk 00:40:29]} {[%emt 00:00:04]} 9. Bxd7+
{[%clk 00:36:31]} {[%emt 00:00:09]} Qxd7 {[%clk 00:39:08]} {[%emt 00:01:32]} 10.
Nf3 {[%clk 00:36:40]} {[%emt 00:00:02]} Nxf3+ {[%clk 00:37:54]} {[%emt
00:01:23]} 11. Qxf3 {[%clk 00:36:41]} {[%emt 00:00:08]} Qe6+ {[%clk 00:37:55]}
{[%emt 00:00:10]} 12. Be3 {[%clk 00:32:18]} {[%emt 00:04:33]} Bc5 {[%clk
00:37:41]} {[%emt 00:00:23]} 13. Nd2 {[%clk 00:27:06]} {[%emt 00:05:23]} O-O
{[%clk 00:34:07]} {[%emt 00:03:43]} 14. O-O {[%clk 00:25:11]} {[%emt 00:02:05]}
Bxe3 {[%clk 00:34:14]} {[%emt 00:00:04]} 15. Qxe3 {[%clk 00:25:10]} {[%emt
00:00:12]} Qxe3 {[%clk 00:33:54]} {[%emt 00:00:30]} 16. fxe3 {[%clk 00:25:17]}
{[%emt 00:00:02]} Rfe8 {[%clk 00:33:49]} {[%emt 00:00:14]} 17. Rfe1 {[%clk
00:20:03]} {[%emt 00:05:26]} Re7 {[%clk 00:32:30]} {[%emt 00:01:28]} 18. Re2
{[%clk 00:17:35]} {[%emt 00:02:39]} Rae8 {[%clk 00:32:32]} {[%emt 00:00:07]} 19.
Rae1 {[%clk 00:17:37]} {[%emt 00:00:08]} h5 {[%clk 00:31:20]} {[%emt 00:01:21]}
20. g3 {[%clk 00:12:48]} {[%emt 00:05:00]} Nd7 {[%clk 00:29:54]} {[%emt
00:01:35]} 21. Nf3 {[%clk 00:10:11]} {[%emt 00:02:48]} Nc5 {[%clk 00:29:11]}
{[%emt 00:00:52]} 22. Rd2 {[%clk 00:04:23]} {[%emt 00:05:59]} Rxe3 {[%clk
00:28:57]} {[%emt 00:00:24]} 23. Rxe3 {[%clk 00:04:22]} {[%emt 00:00:11]} Rxe3
{[%clk 00:29:04]} 24. Rxd5 {[%clk 00:03:33]} {[%emt 00:01:02]} Ne4 {[%clk
00:28:05]} {[%emt 00:01:08]} 25. Rd8+ {[%clk 00:00:51]} {[%emt 00:02:53]} Kh7
{[%clk 00:28:13]} {[%emt 00:00:02]} 26. Re8 {[%clk 00:00:59]} {[%emt 00:00:02]}
Rxf3 {[%clk 00:22:12]} {[%emt 00:06:12]} 27. Rxe4 {[%clk 00:01:07]} {[%emt
00:00:02]} Rxg3+ {[%clk 00:22:20]} {[%emt 00:00:01]} 28. Kh2 {[%clk 00:01:15]}
{[%emt 00:00:03]} Rd3 {[%clk 00:22:07]} {[%emt 00:00:22]} 29. Re2 {[%clk
00:01:13]} {[%emt 00:00:12]} f6 {[%clk 00:21:30]} {[%emt 00:00:48]} 30. c4
{[%clk 00:01:09]} {[%emt 00:00:14]} Kg8 {[%clk 00:20:53]} {[%emt 00:00:46]} 31.
b3 {[%clk 00:00:30]} {[%emt 00:00:50]} Kf7 {[%clk 00:20:49]} {[%emt 00:00:13]}
32. Kg2 {[%clk 00:00:37]} {[%emt 00:00:03]} g5 {[%clk 00:20:49]} {[%emt
00:00:09]} 33. Rc2 {[%clk 00:00:29]} {[%emt 00:00:19]} f5 {[%clk 00:19:28]}
{[%emt 00:01:31]} 34. b4 {[%clk 00:00:12]} {[%emt 00:00:28]} g4 {[%clk
00:18:37]} {[%emt 00:01:01]} 35. hxg4 {[%clk 00:00:15]} {[%emt 00:00:07]} hxg4
{[%clk 00:18:46]} {[%emt 00:00:01]} 36. Kf2 {[%clk 00:00:13]} {[%emt 00:00:12]}
Ke6 {[%clk 00:18:18]} {[%emt 00:00:37]} 37. Re2+ {[%clk 00:00:17]} {[%emt
00:00:07]} Kd6 {[%clk 00:17:45]} {[%emt 00:00:43]} 38. Rc2 {[%clk 00:00:16]}
{[%emt 00:00:11]} f4 {[%clk 00:16:40]} {[%emt 00:01:14]} 39. Ke2 {[%clk
00:00:19]} {[%emt 00:00:07]} Rh3 {[%clk 00:16:14]} {[%emt 00:00:36]} 40. Rd2+
{[%clk 00:00:23]} {[%emt 00:00:07]} Kc6 {[%clk 00:16:16]} {[%emt 00:00:07]} 41.
Rd4 {[%clk 00:00:17]} {[%emt 00:00:17]} f3+ {[%clk 00:16:14]} {[%emt 00:00:11]}
42. Kf2 {[%clk 00:00:16]} {[%emt 00:00:12]} Rh2+ {[%clk 00:16:17]} {[%emt
00:00:06]} 43. Kf1 {[%clk 00:00:12]} {[%emt 00:00:15]} g3 {[%clk 00:16:17]}
{[%emt 00:00:09]} 44. Rg4 {[%clk 00:00:12]} {[%emt 00:00:11]} Rh1# {[%clk
00:16:25]} {[%emt 00:00:02]} 0-1